bitfinex/quotes_ETHUSD_20230702
["timestamp","ask_amount","ask_price","bid_price","bid_amount"]
[1688269671585,5.22509032,1915.4,1915.1,10.44301]
[1688269671780,5.22509032,1915.4,1915.1,7.90898184]
[1688269672582,5.22509032,1915.4,1915.1,13.13063184]
[1688269673083,0.00425032,1915.4,1915.1,13.13063184]
[1688269673285,0.00425032,1915.4,1915.1,15.74145184]
[1688269673877,0.00425032,1915.4,1915.1,13.05393]
[1688269674077,0.00425032,1915.4,1915.0,3.40885141]
[1688269674078,13.84060735,1915.4,1915.0,3.40885141]
[1688269674343,13.84060735,1915.4,1914.9,5.3717271]
[1688269674535,15.58760735,1915.4,1915.0,5.22188]
[1688269675229,15.58760735,1915.4,1914.9,13.28130894]
[1688269675526,0.817,1915.2,1914.9,0.1496271]
[1688269675742,13.05412,1915.1,1914.9,0.1496271]
[1688269676443,13.05903558,1915.0,1914.9,0.1496271]
[1688269678354,13.87503558,1915.0,1914.9,0.1496271]
[1688269682889,22.05155742,1915.0,1914.9,7.1e-06]
[1688269683033,22.05155742,1915.0,1914.5,0.1]
[1688269683034,0.5,1914.9,1914.5,0.1]
[1688269683249,36.82417,1914.8,1914.5,0.1]
[1688269683446,15.66758,1914.8,1914.5,0.1]
[1688269684498,0.00423601,1914.7,1914.5,0.1]
[1688269684777,0.00423601,1914.7,1914.4,0.05]
[1688269684778,13.05755,1914.6,1914.4,0.05]
[1688269685377,0.0042203,1914.5,1914.4,0.05]
[1688269685680,13.0624403,1914.5,1914.4,0.05]
[1688269685866,13.0624403,1914.5,1914.3,0.05]
[1688269687764,10.4508003,1914.5,1914.3,0.05]
[1688269687966,0.0042203,1914.5,1914.3,0.05]
[1688269688173,0.0042203,1914.5,1914.3,11.58240971]
[1688269688362,0.0042203,1914.5,1914.4,1.15824097]
[1688269689086,5.2275103,1914.5,1914.3,0.31773971]
[1688269689245,5.2275103,1914.5,1914.3,5.54156971]
[1688269689579,0.0042203,1914.5,1914.4,10.79060155]
[1688269689768,0.0042203,1914.5,1914.4,16.49416155]
[1688269689955,0.0042203,1914.5,1914.4,18.14857771]
[1688269690355,10.44581,1914.7,1914.4,18.14857771]
[1688269690558,10.44581,1914.7,1914.5,5.70318]
[1688269690762,10.44581,1914.7,1914.5,8.39070184]
[1688269690956,5.22289,1914.7,1914.5,8.39070184]
[1688269691162,10.44467,1914.9,1914.5,9.97348489]
[1688269691357,0.00428352,1914.6,1914.5,7.28596305]
[1688269692261,5.22291,1914.7,1914.5,2.06278305]
[1688269692458,5.22291,1914.7,1914.5,3.16752184]
[1688269693489,0.00428352,1914.6,1914.5,3.16752184]
[1688269694421,10.44584,1914.7,1914.5,3.16752184]
[1688269694595,5.22291,1914.7,1914.5,3.16752184]
[1688269695153,0.816,1915.2,1914.5,3.16752184]
[1688269695388,0.816,1915.2,1914.7,0.814]
[1688269695389,5.22202,1915.0,1914.7,0.814]
[1688269695556,10.44395,1915.0,1914.6,8.22709402]
[1688269696257,13.05491,1915.0,1914.6,13.45011402]
[1688269697491,5.22193,1915.0,1914.7,1.3450114]
[1688269697792,5.22193,1915.0,1914.7,14.47795324]
[1688269698088,10.44386,1915.0,1914.7,0.817]
[1688269698290,10.44386,1915.0,1914.5,7.34665]
[1688269698291,13.05482,1915.0,1914.5,7.34665]
[1688269698508,13.05482,1915.0,1914.6,2.68752184]
[1688269698689,13.05482,1915.0,1914.5,5.70315]
[1688269698690,13.05482,1915.0,1914.5,0.48]
[1688269699000,14.601882,1915.0,1914.5,3.16752184]
[1688269699403,0.00430508,1914.9,1914.5,3.16752184]
[1688269699696,10.44506,1914.8,1914.5,13.13397184]
[1688269700270,0.00428772,1914.7,1914.5,7.91068184]
[1688269700472,0.00428772,1914.7,1914.6,0.817]
[1688269700699,0.00428772,1914.7,1914.6,5.22302]
[1688269702791,0.00428772,1914.7,1914.6,15.74507184]
[1688269703095,0.00428772,1914.7,1914.6,18.21827902]
[1688269703309,5.22157,1915.2,1914.6,18.21827902]
[1688269703607,5.2215,1915.2,1914.8,10.44452]
[1688269703809,5.2215,1915.2,1914.9,2.68752184]
[1688269704096,5.2215,1915.2,1914.9,7.90953184]
[1688269704437,0.00432245,1915.1,1914.9,7.90953184]
[1688269705175,5.22598245,1915.1,1914.9,7.90953184]
[1688269705576,10.44764245,1915.1,1914.9,7.90953184]
[1688269707899,5.22598245,1915.1,1914.9,13.13173184]
[1688269708120,0.00432245,1915.1,1914.9,13.13173184]
[1688269708409,5.22599245,1915.1,1914.9,7.90953184]
[1688269709495,11.49240969,1915.1,1914.6,2.4666]
[1688269709695,11.49240969,1915.1,1914.7,5.22266]
[1688269710330,11.49240969,1915.1,1914.7,10.44541]
[1688269710938,11.49240969,1915.1,1914.7,5.22266]
[1688269711836,1.14924097,1915.0,1914.5,4.5837]
[1688269712128,13.05585,1914.9,1914.5,2.68752184]
[1688269712427,15.71220785,1914.9,1914.5,2.68752184]
[1688269712634,15.71220785,1914.9,1914.5,7.91073184]
[1688269712928,7.87869785,1914.9,1914.5,13.55569965]
[1688269713230,13.10103785,1914.9,1914.5,16.16733965]
[1688269713405,13.10103785,1914.9,1914.5,17.78407361]
[1688269714012,15.71213785,1914.9,1914.5,15.17243361]
[1688269714199,15.71213785,1914.9,1914.5,13.55569965]
[1688269714400,15.71213785,1914.9,1914.5,8.33240965]
[1688269714608,15.71213785,1914.9,1914.5,13.55569965]
[1688269714936,13.10103785,1914.9,1914.5,13.55569965]
[1688269715139,15.71213785,1914.9,1914.5,8.33240965]
[1688269715340,15.71213785,1914.9,1914.3,0.05]
[1688269715341,1.58778205,1914.8,1914.3,0.05]
[1688269715541,13.0572,1914.7,1914.3,0.05]
[1688269716209,13.0572,1914.7,1914.3,0.47515081]
[1688269716413,0.00412539,1914.6,1914.3,0.05]
[1688269716725,13.06196539,1914.6,1914.3,5.27382]
[1688269716914,13.06196539,1914.6,1914.3,0.05]
[1688269717469,13.06196539,1914.6,1914.3,5.2738]
[1688269717470,10.45045539,1914.6,1914.3,5.2738]
[1688269718738,11.92963193,1914.6,1914.3,5.2738]
[1688269718941,14.51243193,1914.6,1914.3,5.2738]
[1688269721369,14.51243193,1914.6,1914.3,0.05]
[1688269721945,14.51243193,1914.6,1914.3,5.27382]
[1688269723590,7.80998539,1914.6,1914.3,10.49766]
[1688269724089,2.58692539,1914.6,1914.3,10.49766]
[1688269725968,0.00412539,1914.6,1914.3,14.00218184]
[1688269726303,0.00412539,1914.6,1914.5,0.814]
[1688269726495,13.10458,1915.0,1914.5,3.50152184]
[1688269726805,1.044418,1914.9,1914.5,3.50152184]
[1688269727010,5.22221,1914.9,1914.5,3.50152184]
[1688269727176,5.22221,1914.9,1914.5,2.68752184]
[1688269727375,0.00417309,1914.8,1914.5,2.68752184]
[1688269728400,5.22221,1914.9,1914.5,2.68752184]
[1688269728580,7.88248,1915.0,1914.5,2.68752184]
[1688269728581,13.10459,1915.0,1914.5,2.68752184]
[1688269728771,14.859194,1915.0,1914.5,2.68752184]
[1688269729389,0.00418177,1914.9,1914.5,2.68752184]
[1688269729881,0.00418177,1914.9,1914.6,0.816]
[1688269730085,0.00418177,1914.9,1914.6,6.03884]
[1688269730778,0.00418177,1914.9,1914.6,5.22284]
[1688269730977,0.00418177,1914.9,1914.6,6.87906718]
[1688269731172,0.00418177,1914.9,1914.6,6.82906718]
[1688269731789,0.00418177,1914.9,1914.6,12.05208718]
[1688269732601,5.22639177,1914.9,1914.6,5.17284]
[1688269733729,5.22639177,1914.9,1914.6,10.39586]
[1688269734315,5.22639177,1914.9,1914.6,5.17284]
[1688269735129,5.22639177,1914.9,1914.6,10.39586]
[1688269735503,0.00418177,1914.9,1914.6,5.17284]
[1688269735706,0.00418177,1914.9,1914.6,13.08338184]
[1688269735900,0.00418177,1914.9,1914.6,14.77606628]
[1688269736611,0.00418177,1914.9,1914.6,14.72606628]
[1688269738138,0.00418177,1914.9,1914.6,9.50304628]
[1688269738429,0.00418177,1914.9,1914.6,7.81036184]
[1688269738803,0.00418177,1914.9,1914.6,13.03338184]
[1688269740342,0.00418177,1914.9,1914.6,12.98338184]
[1688269742566,0.00418177,1914.9,1914.7,3.50352184]
[1688269742770,0.00418177,1914.9,1914.8,5.22247]
[1688269743064,0.00418177,1914.9,1914.8,9.30484002]
[1688269743433,7.68818,1915.2,1914.8,9.30484002]
[1688269744368,0.00416856,1915.1,1914.8,14.52731002]
[1688269744536,0.00416856,1915.1,1914.8,9.30484002]
[1688269745144,0.00416856,1915.1,1914.9,2.68752184]
[1688269745353,0.00416856,1915.1,1915.0,11.52961218]
[1688269745671,0.00416856,1915.1,1915.0,16.82809402]
[1688269745975,0.00416856,1915.1,1915.0,17.30809402]
[1688269746491,4.1674,1915.5,1915.0,17.30809402]
[1688269746633,4.1674,1915.5,1915.1,3.50452184]
[1688269746968,4.1674,1915.5,1915.2,10.44268]
[1688269747345,0.00413518,1915.4,1915.2,10.44268]
[1688269747831,0.00413518,1915.4,1915.2,5.22133]
[1688269748227,0.00413518,1915.4,1915.2,8.72285184]
[1688269748481,0.00413518,1915.4,1915.2,18.12852069]
[1688269748634,0.00413518,1915.4,1915.2,15.51783069]
[1688269749338,10.44075,1915.6,1915.2,15.51783069]
[1688269749543,10.44075,1915.6,1915.2,14.70383069]
[1688269749940,14.65245,1915.7,1915.2,14.70383069]
[1688269750242,9.43226,1915.7,1915.2,18.13152069]
[1688269750592,0.00415915,1915.6,1915.3,2.68752184]
[1688269750899,0.00415915,1915.6,1915.4,5.22078]
[1688269751071,0.00415915,1915.6,1915.4,7.90830184]
[1688269751444,4.2121,1915.7,1915.4,13.12914184]
[1688269751445,2.4618,1915.7,1915.4,13.12914184]
[1688269752167,7.68183,1915.7,1915.4,13.12914184]
[1688269752346,0.00415915,1915.6,1915.4,14.92369484]
[1688269752666,0.00415915,1915.6,1915.5,13.12864184]
[1688269753181,0.00415915,1915.6,1915.5,15.73892184]
[1688269753340,2.5517,1915.9,1915.5,16.21892184]
[1688269753541,2.5517,1915.9,1915.5,17.02992184]
[1688269753756,5.21846,1916.3,1915.7,0.814]
[1688269753970,2.5517,1916.1,1915.8,5.21958]
[1688269754483,0.0041998,1916.0,1915.8,5.21958]
[1688269754714,0.0041998,1916.0,1915.8,13.12685184]
[1688269755021,0.0041998,1916.0,1915.8,15.73672184]
[1688269755379,2.5517,1916.1,1915.8,15.73672184]
[1688269755573,2.5517,1916.1,1915.8,17.31039402]
[1688269755780,7.04548,1916.2,1915.8,17.31039402]
[1688269756191,1.8267,1916.2,1915.9,2.68752184]
[1688269756479,0.00420253,1916.1,1916.0,10.4384]
[1688269757475,10.43759,1916.2,1916.0,10.4384]
[1688269757681,5.21879,1916.2,1916.0,5.2192]
[1688269758336,0.00420253,1916.1,1916.0,5.2192]
[1688269758543,0.00420253,1916.1,1916.0,6.79277918]
[1688269758750,0.00420253,1916.1,1916.0,12.01197918]
[1688269759059,0.00420253,1916.1,1916.0,6.79277918]
[1688269759204,0.00420253,1916.1,1916.0,14.69950102]
[1688269759404,2.4523,1916.3,1916.0,14.69950102]
[1688269759610,2.4523,1916.3,1916.0,13.12592184]
[1688269760339,0.00428657,1916.2,1916.0,15.73552184]
[1688269760510,0.00428657,1916.2,1916.0,13.12592184]
[1688269761321,0.00428657,1916.2,1916.1,2.68752184]
[1688269761526,0.00428657,1916.2,1916.1,7.90645184]
[1688269762403,1.7114,1916.4,1916.1,7.90645184]
[1688269762933,8.3873,1916.4,1916.1,7.90645184]
[1688269763141,14.42245,1916.4,1915.9,10.85708949]
[1688269763302,0.00414204,1916.3,1916.0,7.90672184]
[1688269763512,5.21866,1916.2,1916.0,7.90672184]
[1688269764145,5.21866,1916.2,1916.0,2.68752184]
[1688269764319,0.00412471,1916.1,1916.0,2.68752184]
[1688269765446,12.96804,1916.2,1916.0,2.68752184]
[1688269765619,7.74926,1916.2,1916.0,2.68752184]
[1688269766354,0.00412471,1916.1,1916.0,7.90669184]
[1688269766861,0.00412471,1916.1,1916.0,13.12589184]
[1688269767350,2.5306,1916.2,1916.0,13.12589184]
[1688269767853,7.74928,1916.2,1916.0,7.90669184]
[1688269768443,0.00412471,1916.1,1916.0,7.90669184]
[1688269769448,7.74928,1916.2,1916.0,7.90669184]
[1688269770248,7.74928,1916.2,1916.0,2.68752184]
[1688269770452,0.00411355,1916.1,1916.0,2.68752184]
[1688269770869,0.00411355,1916.1,1916.0,7.90672184]
[1688269771369,2.5306,1916.2,1916.0,7.90672184]
[1688269772170,7.74927,1916.2,1916.0,7.90672184]
[1688269772342,0.00411355,1916.1,1916.0,7.90672184]
[1688269773386,7.74927,1916.2,1916.0,7.90672184]
[1688269774376,0.00411355,1916.1,1916.0,7.90672184]
[1688269775379,7.74927,1916.2,1916.0,7.90672184]
[1688269776466,0.00410763,1916.1,1916.0,7.90672184]
[1688269777197,0.00410763,1916.1,1916.0,2.68752184]
[1688269777375,13.82265776,1916.1,1915.9,0.41840949]
[1688269777552,14.63965776,1916.1,1915.5,31.9628]
[1688269777751,15.65125776,1916.1,1915.5,2.68752184]
[1688269777950,13.04902,1915.9,1915.2,32.38]
[1688269778140,13.05033,1915.7,1915.3,2.68752184]
[1688269779006,5.22016,1915.7,1915.3,13.12974184]
[1688269779347,0.00408132,1915.6,1915.3,13.12974184]
[1688269779765,5.22444132,1915.6,1915.3,7.90863184]
[1688269779976,5.22444132,1915.6,1915.3,10.02401393]
[1688269780196,5.22444132,1915.6,1915.3,7.90863184]
[1688269780354,5.22036,1915.6,1915.3,7.90863184]
[1688269782083,5.22036,1915.6,1915.3,13.12974184]
[1688269784844,9.39865,1915.8,1915.3,16.82403155]
[1688269785049,4.1788,1915.8,1915.4,2.16240316]
[1688269785365,0.00408138,1915.7,1915.5,7.90803184]
[1688269789286,0.00408138,1915.7,1915.6,0.48]
[1688269789454,0.00408138,1915.7,1915.6,8.38781184]
[1688269790251,0.00408138,1915.7,1915.6,22.78698155]
[1688269790457,0.00408138,1915.7,1915.6,27.3417776]
[1688269790897,0.00408138,1915.7,1915.6,18.97489789]
[1688269791054,0.00408138,1915.7,1915.6,18.16289789]
[1688269791368,5.21924,1916.0,1915.6,18.16289789]
[1688269791715,5.21924,1916.0,1915.7,5.68752184]
[1688269791856,5.21924,1916.0,1915.7,10.90735184]
[1688269792238,5.21924,1916.0,1915.7,12.589755]
[1688269792414,5.21924,1916.0,1915.7,17.809775]
[1688269793198,5.21908,1916.1,1915.7,17.809775]
[1688269793686,14.75787,1916.2,1915.7,20.419785]
[1688269794076,4.3202,1916.2,1915.8,1.55479605]
[1688269794391,0.00408342,1916.1,1915.9,13.12636184]
[1688269795490,7.67078,1916.2,1915.9,13.12636184]
[1688269795657,2.4521,1916.2,1915.9,13.12636184]
[1688269796459,0.00408342,1916.1,1915.9,13.12636184]
[1688269796659,0.00408342,1916.1,1915.9,14.808765]
[1688269797462,2.4521,1916.2,1915.9,14.808765]
[1688269797978,7.07967,1916.5,1915.9,18.235495]
[1688269798302,2.5429,1916.4,1916.0,0.48]
[1688269798613,2.54700943,1916.4,1916.1,2.68752184]
[1688269798962,7.76522943,1916.4,1916.1,2.68752184]
[1688269799205,14.46793937,1916.4,1916.1,2.68752184]
[1688269802200,12.98344943,1916.4,1916.1,2.68752184]
[1688269804086,2.54700943,1916.4,1916.1,13.12524184]
[1688269804287,2.54700943,1916.4,1916.1,15.73470184]
[1688269805401,2.54700943,1916.4,1916.1,13.12524184]
[1688269805766,7.76512943,1916.4,1916.1,13.12524184]
[1688269806181,2.54700943,1916.4,1916.1,13.12524184]
[1688269806500,2.54700943,1916.4,1916.1,14.82842202]
[1688269806703,2.54700943,1916.4,1916.1,17.43788202]
[1688269807781,2.54700943,1916.4,1916.1,17.85192019]
[1688269810189,0.00410943,1916.4,1916.2,0.48]
[1688269810386,2.6307,1916.6,1916.3,7.90590184]
[1688269810708,7.84831,1916.6,1916.3,9.26634302]
[1688269811222,7.84831,1916.6,1916.3,4.04796302]
[1688269811391,0.00408991,1916.5,1916.3,4.04796302]
[1688269811589,0.00408991,1916.5,1916.3,17.09380302]
[1688269811931,0.00408991,1916.5,1916.4,0.48]
[1688269812099,0.00408991,1916.5,1916.4,10.14301214]
[1688269812306,0.00408991,1916.5,1916.4,15.36112214]
[1688269812921,0.00408991,1916.5,1916.4,10.14301214]
[1688269814820,0.00408991,1916.5,1916.4,4.92490214]
[1688269815008,0.00408991,1916.5,1916.2,10.43699]
[1688269815009,0.00408991,1916.5,1916.2,5.21846]
[1688269815210,0.00408991,1916.5,1916.2,7.90617184]
[1688269815592,13.04881991,1916.5,1916.1,3.41403817]
[1688269815796,10.43989991,1916.5,1916.1,3.10156001]
[1688269816007,12.99881991,1916.5,1916.1,8.32042001]
[1688269816211,12.99881991,1916.5,1916.1,9.97436901]
[1688269816399,0.00392394,1916.4,1916.1,15.19329901]
[1688269816593,10.44041394,1916.4,1916.1,9.97436901]
[1688269817510,10.44041394,1916.4,1916.1,0.41403817]
[1688269817700,13.04946394,1916.4,1916.1,0.41403817]
[1688269817894,0.816,1916.3,1915.7,33.38]
[1688269818124,0.816,1916.3,1915.8,2.68752184]
[1688269818125,10.43762,1916.2,1915.8,2.68752184]
[1688269818346,10.43762,1916.2,1915.7,3.0]
[1688269818347,10.43762,1916.2,1915.7,0.41806132]
[1688269818526,1.043762,1916.1,1915.4,40.82141]
[1688269818725,11.256,1915.9,1915.5,2.68752184]
[1688269819022,13.86573,1915.9,1915.5,2.68752184]
[1688269819203,13.86573,1915.9,1915.3,5.22097]
[1688269819396,10.44014,1915.7,1915.4,3.11547071]
[1688269819611,10.44014,1915.7,1915.4,8.33631071]
[1688269819811,10.44014,1915.7,1915.5,0.83363107]
[1688269820006,10.44014,1915.7,1915.5,6.05414107]
[1688269820212,10.44014,1915.7,1915.5,0.83363107]
[1688269820408,5.2241777,1915.6,1915.5,0.83363107]
[1688269821214,5.2241777,1915.6,1915.5,6.05419107]
[1688269822702,0.0038877,1915.6,1915.5,8.74171291]
[1688269822925,0.0038877,1915.6,1915.5,13.96227291]
[1688269823336,5.22003,1915.7,1915.5,13.96227291]
[1688269823557,7.84743,1915.8,1915.5,13.96227291]
[1688269824518,0.00389637,1915.7,1915.5,13.96227291]
[1688269825253,0.00389637,1915.7,1915.6,4.08374913]
[1688269825407,0.00389637,1915.7,1915.6,15.00432913]
[1688269825607,0.00389637,1915.7,1915.6,17.61446913]
[1688269826323,2.5704,1916.2,1915.6,23.91746913]
[1688269826545,5.21826,1916.4,1915.9,13.04822]
[1688269826725,7.78866,1916.4,1916.1,5.21887]
[1688269826919,7.78866,1916.4,1916.1,7.90639184]
[1688269827337,0.00393704,1916.3,1916.1,7.90639184]
[1688269828351,13.00692,1916.4,1916.1,7.90639184]
[1688269829456,0.00393704,1916.3,1916.1,7.90639184]
[1688269829656,0.00393704,1916.3,1916.1,8.74002291]
[1688269829873,5.22233704,1916.3,1916.1,8.74002291]
[1688269830361,10.44073704,1916.3,1916.1,8.74002291]
[1688269832159,5.22233704,1916.3,1916.1,8.74002291]
[1688269832537,5.22233704,1916.3,1916.2,2.68752184]
[1688269832538,0.00393704,1916.3,1916.2,2.68752184]
[1688269832741,0.00393704,1916.3,1916.2,9.30207713]
[1688269833566,13.07935,1916.6,1916.2,9.30207713]
[1688269834461,0.0053501,1916.5,1916.2,9.30207713]
[1688269835437,5.2232001,1916.5,1916.2,9.30207713]
[1688269835640,10.4410501,1916.5,1916.2,9.30207713]
[1688269836149,10.4410501,1916.5,1916.2,14.52073713]
[1688269836350,10.4410501,1916.5,1916.3,1.00767285]
[1688269836554,10.4410501,1916.5,1916.3,3.69519469]
[1688269838532,10.4410501,1916.5,1916.3,2.68752184]
[1688269838971,5.2232001,1916.5,1916.3,2.68752184]
[1688269840174,10.4410501,1916.5,1916.3,2.68752184]
[1688269842664,5.2232001,1916.5,1916.3,2.68752184]
[1688269843373,0.0053501,1916.5,1916.3,2.68752184]
[1688269844988,5.2232001,1916.5,1916.3,2.68752184]
[1688269847388,5.2232001,1916.5,1916.3,3.11117601]
[1688269854592,10.4410501,1916.5,1916.3,3.11117601]
[1688269854801,5.2232001,1916.5,1916.3,3.11117601]
[1688269859381,10.4410401,1916.5,1916.3,3.11117601]
[1688269859897,5.2231901,1916.5,1916.3,3.11117601]
[1688269861181,5.2231901,1916.5,1916.0,8.22902652]
[1688269861182,12.01038811,1916.5,1916.0,0.13044652]
[1688269861382,12.01038811,1916.5,1916.1,2.68752184]
[1688269861383,14.61930811,1916.5,1916.1,2.68752184]
[1688269861703,14.61930811,1916.5,1916.0,2.68752184]
[1688269861704,15.43430811,1916.5,1916.0,2.68752184]
[1688269861869,1.54343081,1916.4,1915.9,3.0]
[1688269862070,13.04304,1916.3,1915.9,2.68752184]
[1688269862379,15.65736115,1916.3,1915.9,2.68752184]
[1688269862768,15.65736115,1916.3,1915.9,3.107512]
[1688269863168,15.65736115,1916.3,1916.0,2.68752184]
[1688269863169,2.61113115,1916.3,1916.0,2.68752184]
[1688269863368,2.61113115,1916.3,1916.1,5.48758218]
[1688269863981,2.61113115,1916.3,1916.1,8.17510402]
[1688269868017,0.00513115,1916.3,1916.2,2.68752184]
[1688269868320,0.00513115,1916.3,1916.2,3.16752184]
[1688269868524,14.72249,1916.5,1916.2,3.16752184]
[1688269869190,9.50446,1916.5,1916.2,3.16752184]
[1688269869387,0.00513975,1916.4,1916.2,3.16752184]
[1688269869590,0.00513975,1916.4,1916.2,4.55491024]
[1688269874221,0.00513975,1916.4,1916.2,4.07491024]
[1688269874394,5.22332975,1916.4,1916.2,2.68752184]
[1688269874596,10.44151975,1916.4,1916.2,2.68752184]
[1688269876421,10.43638,1916.4,1916.2,2.68752184]
[1688269877528,0.00513115,1916.3,1916.2,2.68752184]
[1688269878294,14.72239,1916.5,1916.2,3.54597237]
[1688269878495,14.72239,1916.5,1916.2,2.68752184]
[1688269878832,9.50439,1916.5,1916.2,2.68752184]
[1688269879423,0.00513975,1916.4,1916.2,2.68752184]
[1688269879999,0.00513975,1916.4,1916.2,7.90618184]
[1688269880218,0.00513975,1916.4,1916.2,2.68752184]
[1688269880219,5.22331975,1916.4,1916.2,2.68752184]
[1688269880416,10.44149975,1916.4,1916.2,2.68752184]
[1688269880623,10.44149975,1916.4,1916.2,7.90617184]
[1688269880819,5.22331975,1916.4,1916.2,7.90617184]
[1688269882202,0.00513975,1916.4,1916.2,7.90617184]
[1688269883601,5.22325975,1916.4,1916.2,7.90617184]
[1688269886524,10.44137975,1916.4,1916.2,2.68752184]
[1688269887894,10.44137975,1916.4,1916.1,0.4094113]
[1688269888098,12.17505972,1916.4,1916.1,0.4094113]
[1688269888331,12.17505972,1916.4,1915.9,7.21937]
[1688269888529,12.17505972,1916.4,1916.0,2.68752184]
[1688269888698,14.78410972,1916.4,1915.9,9.90689184]
[1688269889100,14.78410972,1916.4,1915.9,15.12636184]
[1688269889936,14.78410972,1916.4,1915.9,15.55283211]
[1688269891308,1.47841097,1916.3,1915.9,0.42647027]
[1688269891508,13.04675,1916.2,1915.9,0.42647027]
[1688269891718,10.43742,1916.2,1915.8,13.43913]
[1688269891918,2.5603,1916.1,1915.8,10.90700184]
[1688269892129,7.77936,1916.1,1915.8,10.90700184]
[1688269892333,12.99842,1916.1,1915.8,16.12675184]
[1688269892533,0.00511075,1916.0,1915.8,16.12675184]
[1688269892704,0.00511075,1916.0,1915.8,10.90700184]
[1688269892904,0.00511075,1916.0,1915.8,11.32056188]
[1688269893233,0.00511075,1916.0,1915.8,16.54031188]
[1688269893534,5.22432075,1916.0,1915.8,13.43559107]
[1688269893733,5.22432075,1916.0,1915.8,18.65534107]
[1688269893927,5.22432075,1916.0,1915.8,13.43559107]
[1688269894506,5.22432075,1916.0,1915.8,10.74830923]
[1688269894720,5.22432075,1916.0,1915.8,15.96805923]
[1688269897147,5.22432075,1916.0,1915.8,10.74830923]
[1688269897439,5.22432075,1916.0,1915.8,5.63328004]
[1688269897737,10.44351075,1916.0,1915.8,0.41356004]
[1688269898042,10.44351075,1916.0,1915.7,12.4398]
[1688269898236,10.44351075,1916.0,1915.7,7.21987]
[1688269898439,10.44351075,1916.0,1915.7,5.21987]
[1688269898643,13.05311075,1916.0,1915.6,8.22014]
[1688269898814,13.05311075,1916.0,1915.6,10.90778184]
[1688269898815,14.92921075,1916.0,1915.6,10.90778184]
[1688269899333,14.92921075,1916.0,1915.6,16.12807184]
[1688269899536,14.92921075,1916.0,1915.6,10.90778184]
[1688269900008,14.92921075,1916.0,1915.6,11.33341838]
[1688269900408,14.9241,1916.0,1915.6,11.33341838]
[1688269901250,14.9241,1916.0,1915.6,8.51945273]
[1688269901469,0.00511343,1915.9,1915.6,13.73972273]
[1688269901676,10.4395,1915.8,1915.6,8.51945273]
[1688269901870,12.8987,1915.8,1915.6,13.73968273]
[1688269902036,7.67895,1915.8,1915.6,18.95997273]
[1688269902679,7.67895,1915.8,1915.6,13.73968273]
[1688269903272,5.21975,1915.8,1915.6,13.73968273]
[1688269903477,5.21975,1915.8,1915.6,10.73968273]
[1688269904193,5.21975,1915.8,1915.6,15.95997273]
[1688269905570,5.21958,1915.9,1915.6,15.95997273]
[1688269905889,5.21958,1915.9,1915.7,6.05086486]
[1688269906284,9.42631,1916.1,1915.7,6.05086486]
[1688269906488,0.00510483,1915.8,1915.7,6.05086486]
[1688269906688,0.00510483,1915.8,1915.7,8.7383867]
[1688269906875,0.00510483,1915.8,1915.7,9.48612641]
[1688269907298,0.00510483,1915.8,1915.7,14.70614641]
[1688269907497,5.21924,1916.0,1915.7,14.70614641]
[1688269907662,5.21924,1916.0,1915.8,2.68752184]
[1688269908496,0.00511343,1915.9,1915.8,2.68752184]
[1688269908996,0.00511343,1915.9,1915.8,4.13136251]
[1688269911500,5.21924,1916.0,1915.8,4.13136251]
[1688269912476,0.00511343,1915.9,1915.8,4.13136251]
[1688269917478,12.93711,1916.1,1915.8,4.13136251]
[1688269917684,12.93711,1916.1,1915.8,2.68752184]
[1688269918502,0.00512203,1916.0,1915.8,2.68752184]
[1688269918685,5.22436203,1916.0,1915.8,2.68752184]
[1688269922011,5.22436203,1916.0,1915.8,3.098821]
[1688269928816,10.44360203,1916.0,1915.8,3.098821]
[1688269936986,13.05320203,1916.0,1915.8,0.41129916]
[1688269937328,14.86935923,1916.0,1915.6,0.54598133]
[1688269937625,14.78230203,1916.0,1915.7,2.68752184]
[1688269941699,14.78230203,1916.0,1915.8,0.90703246]
[1688269941901,14.78230203,1916.0,1915.7,2.68752184]
[1688269945730,12.17270203,1916.0,1915.7,2.68752184]
[1688269945902,12.17270203,1916.0,1915.8,0.90702659]
[1688269946302,10.44360203,1916.0,1915.8,0.90702659]
[1688269946627,5.22436203,1916.0,1915.8,0.90702659]
[1688269947533,10.44356203,1916.0,1915.8,0.90702659]
[1688269948337,5.22432203,1916.0,1915.8,0.90702659]
[1688269948723,10.44352203,1916.0,1915.8,0.90702659]
[1688269949320,10.44352203,1916.0,1915.7,7.90749184]
[1688269951307,10.44352203,1916.0,1915.7,2.68752184]
[1688269952617,10.44352203,1916.0,1915.8,0.90704791]
[1688269957937,0.00512203,1916.0,1915.8,3.59456975]
[1688269958137,0.00512203,1916.0,1915.9,0.9069986]
[1688269958841,0.00512203,1916.0,1915.8,3.62357895]
[1688269961428,0.00512203,1916.0,1915.9,2.68752184]
[1688269961973,0.00512203,1916.0,1915.9,3.50452184]
[1688269962133,0.00512203,1916.0,1915.9,6.37949738]
[1688269962522,12.94781,1916.3,1915.9,6.37949738]
[1688269962751,12.94781,1916.3,1915.9,5.47250774]
[1688269963066,1.7353,1916.4,1916.0,0.90692026]
[1688269963260,5.21811,1916.4,1916.1,3.50452184]
[1688269963445,0.00514291,1916.3,1916.1,3.50067804]
[1688269964364,4.2461,1916.6,1916.1,8.71949804]
[1688269964579,9.46383,1916.6,1916.1,13.93842804]
[1688269964733,14.6816,1916.6,1916.1,13.93842804]
[1688269965236,14.6816,1916.6,1916.1,8.71949804]
[1688269965433,0.0051601,1916.5,1916.1,8.71949804]
[1688269965640,5.2231101,1916.5,1916.1,8.71949804]
[1688269966736,5.2231101,1916.5,1916.2,2.1649498]
[1688269966737,0.0051601,1916.5,1916.2,2.1649498]
[1688269966964,0.0051601,1916.5,1916.3,14.68388184]
[1688269967136,0.0051601,1916.5,1916.3,13.12428184]
[1688269967481,4.3738,1917.0,1916.3,2.68752184]
[1688269967482,5.21773,1916.6,1916.3,2.68752184]
[1688269967638,10.43557,1916.6,1916.3,13.12428184]
[1688269968477,5.22289936,1916.5,1916.3,13.12428184]
[1688269969049,5.22289936,1916.5,1916.3,14.67637505]
[1688269970252,0.00491936,1916.5,1916.3,14.67637505]
[1688269970483,5.21773,1916.6,1916.3,14.67637505]
[1688269971453,0.00491936,1916.5,1916.3,14.67637505]
[1688269973868,5.22276936,1916.5,1916.3,14.67637505]
[1688269976676,5.22276936,1916.5,1916.3,15.08962881]
[1688269977091,0.00491936,1916.5,1916.4,0.8131562]
[1688269977266,0.00491936,1916.5,1916.4,8.71878804]
[1688269978394,14.86923,1916.7,1916.4,8.71878804]
[1688269978994,7.86346,1916.7,1916.5,2.68752184]
[1688269979192,7.86346,1916.7,1916.5,7.90534184]